bitfinex/quotes_SOLUSD_20241028
["timestamp","ask_amount","ask_price","bid_price","bid_amount"]
[1730103090793,14.04847106,176.66,176.61,23.776884]
[1730103090965,14.04847106,176.66,176.61,37.82535506]
[1730103091378,5.66,176.68,176.63,37.82535506]
[1730103091571,5.66,176.68,176.64,14.04847106]
[1730103091779,5.66,176.68,176.65,23.776884]
[1730103092167,5.66,176.68,176.64,23.776884]
[1730103092889,19.70847106,176.68,176.64,23.776884]
[1730103096601,5.66,176.68,176.64,23.776884]
[1730103097096,5.6589,176.71,176.65,14.04847106]
[1730103097300,19.70737106,176.71,176.66,23.776884]
[1730103097501,14.04847106,176.69,176.66,23.776884]
[1730103097799,14.04847106,176.69,176.65,23.776884]
[1730103098388,14.04847106,176.68,176.65,23.776884]
[1730103098995,5.6602,176.67,176.65,23.776884]
[1730103099294,5.6602,176.67,176.64,23.776884]
[1730103101004,8.96466963,176.69,176.64,23.776884]
[1730103101005,5.6599,176.68,176.64,23.776884]
[1730103102799,8.96466963,176.69,176.64,32.74155363]
[1730103102996,8.96466963,176.7,176.66,23.776884]
[1730103103189,5.6596,176.69,176.66,23.776884]
[1730103103909,5.658,176.74,176.68,23.776884]
[1730103104414,8.96466963,176.72,176.68,23.776884]
[1730103104600,5.658,176.74,176.68,23.776884]
[1730103104790,8.96466963,176.72,176.68,23.776884]
[1730103105197,5.6589,176.71,176.68,23.776884]
[1730103105903,5.6589,176.71,176.67,23.776884]
[1730103106286,8.96466963,176.71,176.67,23.776884]
[1730103107908,19.803,176.74,176.67,23.776884]
[1730103107909,8.96466963,176.7,176.67,23.776884]
[1730103108094,8.96466963,176.7,176.66,23.776884]
[1730103108897,8.96466963,176.69,176.66,23.776884]
[1730103109195,8.96466963,176.69,176.65,23.776884]
[1730103109401,14.62416963,176.7,176.65,23.776884]
[1730103109714,14.62416963,176.7,176.65,32.74155363]
[1730103110312,0.5984079,176.75,176.69,8.96466963]
[1730103110516,5.658,176.74,176.7,32.74155363]
[1730103114215,5.658,176.74,176.7,23.776884]
[1730103117921,14.62266963,176.74,176.7,23.776884]
[1730103118513,8.96466963,176.72,176.7,23.776884]
[1730103118920,8.96466963,176.73,176.69,23.776884]
[1730103120025,5.6586,176.72,176.69,23.776884]
[1730103120198,5.658,176.74,176.69,32.74155363]
[1730103120407,14.62266963,176.74,176.69,32.74155363]
[1730103121603,14.62306963,176.73,176.69,23.776884]
[1730103124931,5.6584,176.73,176.69,23.776884]
[1730103125429,14.62306963,176.73,176.69,23.776884]
[1730103126924,8.96466963,176.71,176.69,23.776884]
[1730103128027,14.62376963,176.71,176.69,23.776884]
[1730103128761,8.96466963,176.7,176.69,23.776884]
[1730103128939,8.96466963,176.7,176.62,6.5083]
[1730103129149,8.96466963,176.65,176.61,15.5594]
[1730103129427,8.96466963,176.66,176.61,24.52406963]
[1730103130431,8.96466963,176.65,176.61,15.5594]
[1730103130639,8.96466963,176.64,176.62,23.776884]
[1730103132314,8.96466963,176.65,176.62,23.776884]
[1730103132533,8.96466963,176.66,176.61,32.74155363]
[1730103133444,8.96466963,176.66,176.61,23.776884]
[1730103133638,8.96466963,176.65,176.61,23.776884]
[1730103136345,8.96466963,176.62,176.61,23.776884]
[1730103136543,8.96466963,176.62,176.57,8.96466963]
[1730103136726,8.96466963,176.62,176.56,16.3396]
[1730103137048,8.96466963,176.61,176.56,25.30426963]
[1730103137235,8.96466963,176.61,176.56,16.3396]
[1730103137438,8.96466963,176.6,176.53,6.1829]
[1730103137642,8.96466963,176.59,176.54,8.96466963]
[1730103138532,70.0,176.65,176.53,6.1829]
[1730103138773,8.96466963,176.55,176.5,8.96466963]
[1730103138937,8.96466963,176.55,176.49,6.2865]
[1730103139136,8.96466963,176.54,176.49,15.25116963]
[1730103139335,8.96466963,176.53,176.49,6.2865]
[1730103139654,35.85867852,176.6,176.49,6.2865]
[1730103139655,8.96466963,176.55,176.5,8.96466963]
[1730103140429,8.96466963,176.54,176.49,15.25116963]
[1730103140649,5.6628,176.59,176.49,15.25116963]
[1730103140853,8.96466963,176.54,176.49,15.25116963]
[1730103141144,8.96466963,176.54,176.5,24.027864]
[1730103142043,8.96466963,176.51,176.45,6.5884]
[1730103142255,8.96466963,176.48,176.44,15.7481]
[1730103142426,21.2834,176.55,176.41,6.5884]
[1730103142427,8.96466963,176.46,176.41,6.5884]
[1730103142847,8.96466963,176.45,176.41,6.5884]
[1730103143143,35.4436,176.55,176.44,8.96466963]
[1730103143350,35.4436,176.55,176.46,8.96466963]
[1730103143656,8.96466963,176.52,176.47,8.96466963]
[1730103144350,8.96466963,176.51,176.46,8.96466963]
[1730103144558,8.96466963,176.51,176.47,23.776884]
[1730103145150,14.63006963,176.51,176.47,23.776884]
[1730103146945,5.6654,176.51,176.46,23.776884]
[1730103147147,14.63006963,176.51,176.46,32.74155363]
[1730103147348,5.6644,176.54,176.5,23.776884]
[1730103147562,14.62906963,176.54,176.5,23.776884]
[1730103147761,8.96466963,176.53,176.5,23.776884]
[1730103147926,8.96466963,176.53,176.49,23.776884]
[1730103148125,5.6644,176.54,176.49,32.74155363]
[1730103148328,14.62906963,176.54,176.49,32.74155363]
[1730103148545,8.96466963,176.53,176.49,23.776884]
[1730103148829,8.96466963,176.52,176.48,23.776884]
[1730103150146,14.62966963,176.53,176.48,32.74155363]
[1730103152034,99.9466,176.59,176.52,8.96466963]
[1730103152035,5.6631,176.58,176.52,8.96466963]
[1730103152341,5.6631,176.58,176.53,8.96466963]
[1730103152342,14.62776963,176.58,176.53,8.96466963]
[1730103152532,14.62776963,176.58,176.54,23.776884]
[1730103153736,8.96466963,176.56,176.53,23.776884]
[1730103154133,8.96466963,176.56,176.52,23.776884]
[1730103154944,14.62866963,176.56,176.52,23.776884]
[1730103155562,8.96466963,176.55,176.52,23.776884]
[1730103155760,8.96466963,176.55,176.51,23.776884]
[1730103155936,8.96466963,176.54,176.5,23.776884]
[1730103156465,8.96466963,176.55,176.5,32.74155363]
[1730103156666,8.96466963,176.56,176.52,23.776884]
[1730103157136,8.96466963,176.56,176.51,23.776884]
[1730103157837,14.62876963,176.56,176.51,23.776884]
[1730103158342,8.96466963,176.54,176.5,23.776884]
[1730103159259,8.96466963,176.55,176.5,32.74155363]
[1730103159432,14.62896963,176.55,176.5,32.74155363]
[1730103160259,8.96466963,176.51,176.45,25.42376963]
[1730103160632,5.6643,176.55,176.46,8.96466963]
[1730103160853,8.96466963,176.48,176.41,23.1862]
[1730103161058,8.96466963,176.47,176.41,32.15086963]
[1730103161266,8.96466963,176.45,176.4,8.96466963]
[1730103161566,8.96466963,176.45,176.39,8.96466963]
[1730103162156,8.96466963,176.44,176.39,8.96466963]
[1730103162663,8.96466963,176.44,176.4,23.776884]
[1730103162961,8.96466963,176.44,176.39,8.96466963]
[1730103163663,8.96466963,176.44,176.38,8.96466963]
[1730103163961,14.63226963,176.44,176.38,8.96466963]
[1730103164260,8.96466963,176.43,176.39,24.027864]
[1730103165040,5.6673,176.45,176.4,8.96466963]
[1730103165255,14.63196963,176.45,176.41,23.776884]
[1730103165849,8.96466963,176.44,176.4,23.776884]
[1730103166365,8.96466963,176.47,176.42,32.74155363]
[1730103167157,30.2681,176.51,176.43,8.96466963]
[1730103167361,5.6657,176.5,176.44,23.776884]
[1730103167565,8.96466963,176.48,176.44,23.776884]
[1730103167749,8.96466963,176.49,176.44,32.74155363]
[1730103168251,8.96466963,176.5,176.45,8.96466963]
[1730103168444,8.96466963,176.49,176.46,23.776884]
[1730103168859,8.96466963,176.49,176.45,23.776884]
[1730103170037,70.0,176.63,176.49,20.25098]
[1730103170237,8.96466963,176.58,176.53,23.776884]
[1730103170441,8.96466963,176.58,176.53,32.74155363]
[1730103170948,8.96466963,176.57,176.53,23.776884]
[1730103171146,8.96466963,176.55,176.51,23.776884]
[1730103171555,5.6639,176.56,176.51,32.74155363]
[1730103171956,14.62856963,176.56,176.51,23.776884]
[1730103172455,14.02729564,176.56,176.51,23.776884]
[1730103173363,5.6628,176.59,176.53,37.80417964]
[1730103173542,19.69009564,176.59,176.55,23.776884]
[1730103173744,5.6624,176.61,176.55,23.776884]
[1730103173943,19.68969564,176.61,176.55,37.80417964]
[1730103174166,19.68969564,176.61,176.57,23.776884]
[1730103174359,5.6624,176.61,176.57,23.776884]
[1730103174666,14.02729564,176.6,176.56,23.776884]
[1730103175959,19.68979564,176.6,176.56,23.776884]
[1730103176146,5.6625,176.6,176.56,23.776884]
[1730103177345,14.02729564,176.6,176.56,23.776884]
[1730103178169,5.6615,176.63,176.56,23.776884]
[1730103178372,16.0108,176.65,176.56,23.776884]
[1730103178665,14.02729564,176.61,176.56,23.776884]
[1730103178870,14.02729564,176.62,176.56,37.80417964]
[1730103179446,5.6612,176.64,176.56,23.776884]
[1730103179447,14.02729564,176.6,176.56,23.776884]
[1730103179653,14.02729564,176.6,176.55,23.776884]
[1730103180370,25.6615,176.63,176.55,37.80417964]
[1730103180561,14.02729564,176.61,176.55,37.80417964]
[1730103180760,14.02729564,176.61,176.57,23.776884]
[1730103181455,19.68969564,176.61,176.57,23.776884]
[1730103182077,14.02729564,176.63,176.57,37.80417964]
[1730103182251,14.02729564,176.63,176.58,14.02729564]
[1730103182450,19.68849564,176.64,176.59,14.02729564]
[1730103182671,19.68849564,176.64,176.57,23.776884]
[1730103182672,19.68749564,176.67,176.62,23.776884]
[1730103183051,14.02729564,176.66,176.62,23.776884]
[1730103183253,14.02729564,176.64,176.62,23.776884]
[1730103183456,19.68879564,176.63,176.62,23.776884]
[1730103186653,14.02729564,176.63,176.62,23.776884]
[1730103186976,5.6602,176.67,176.63,23.776884]
[1730103187154,14.02729564,176.66,176.61,37.80417964]
[1730103187354,5.6602,176.67,176.61,23.776884]
[1730103187355,14.02729564,176.65,176.61,23.776884]
[1730103188470,19.68829564,176.65,176.61,23.776884]
[1730103188682,14.02729564,176.64,176.61,23.776884]
[1730103188858,14.02729564,176.62,176.55,14.02729564]
[1730103189055,14.02729564,176.62,176.57,14.02729564]
[1730103189253,14.02729564,176.63,176.58,14.02729564]
[1730103190479,14.02729564,176.64,176.59,37.80417964]
[1730103191372,5.6605,176.66,176.62,23.776884]
[1730103191677,14.02729564,176.64,176.62,23.776884]
[1730103192980,5.6605,176.66,176.56,14.02729564]
[1730103192981,14.02729564,176.63,176.56,14.02729564]
[1730103193165,14.02729564,176.61,176.57,23.776884]
[1730103193572,14.02729564,176.64,176.6,23.776884]
[1730103193766,14.02729564,176.61,176.56,14.02729564]
[1730103194964,19.68959564,176.61,176.57,23.776884]
[1730103195770,5.6623,176.61,176.57,23.776884]
[1730103195971,14.02729564,176.6,176.57,23.776884]
[1730103196172,14.02729564,176.6,176.56,23.776884]
[1730103196776,14.02729564,176.6,176.55,23.776884]
[1730103196988,14.02729564,176.57,176.53,23.776884]
[1730103197365,14.02729564,176.56,176.52,23.776884]
[1730103197680,14.02729564,176.55,176.5,30.63279564]
[1730103197865,20.0,176.6,176.51,14.02729564]
[1730103198064,14.02729564,176.55,176.5,30.63279564]
[1730103198459,14.02729564,176.53,176.48,20.07259564]
[1730103198688,14.02729564,176.53,176.48,6.0453]
[1730103198981,14.02729564,176.54,176.49,14.02729564]
[1730103199361,39.8187,176.6,176.51,14.02729564]
[1730103199567,39.8187,176.6,176.48,6.0453]
[1730103199568,14.02729564,176.57,176.52,14.02729564]
[1730103199788,19.69079564,176.57,176.53,23.776884]
[1730103202386,14.02729564,176.59,176.55,23.776884]
[1730103203382,19.68929564,176.62,176.57,14.02729564]
[1730103203594,19.68929564,176.62,176.58,23.776884]
[1730103204492,5.662,176.62,176.58,23.776884]
[1730103205305,16.355,176.65,176.59,14.02729564]
[1730103205588,30.38229564,176.65,176.61,23.776884]
[1730103206094,30.38229564,176.65,176.6,23.776884]
[1730103206303,5.6602,176.67,176.61,14.02729564]
[1730103206590,19.68749564,176.67,176.62,23.776884]
[1730103208203,5.6592,176.71,176.65,14.02729564]
[1730103208508,6.395,176.72,176.62,23.776884]
[1730103208509,14.02729564,176.72,176.68,23.776884]
[1730103208696,14.02729564,176.72,176.67,23.776884]
[1730103208882,14.02729564,176.71,176.67,23.776884]
[1730103209300,5.6583,176.73,176.67,23.776884]
[1730103209479,14.02729564,176.72,176.67,37.80417964]
[1730103209677,5.6583,176.73,176.67,37.80417964]
[1730103209892,19.68559564,176.73,176.69,23.776884]
[1730103210303,19.68559564,176.73,176.68,23.776884]
[1730103210502,14.02729564,176.72,176.68,23.776884]
[1730103210797,5.6583,176.73,176.67,14.02729564]
[1730103210798,14.02729564,176.71,176.67,23.776884]
[1730103211481,5.6586,176.72,176.68,23.776884]
[1730103211698,19.68589564,176.72,176.68,23.776884]
[1730103212199,19.68589564,176.72,176.67,23.776884]
[1730103212402,14.02729564,176.72,176.67,37.80417964]
[1730103213302,29.09769564,176.74,176.69,23.776884]
[1730103213492,19.68529564,176.74,176.69,23.776884]
[1730103213700,14.02729564,176.72,176.68,23.776884]
[1730103214580,14.02729564,176.7,176.68,23.776884]
[1730103215480,14.02729564,176.71,176.68,23.776884]
[1730103215698,14.02729564,176.71,176.67,23.776884]
[1730103215905,5.6587,176.72,176.67,37.80417964]
[1730103216209,5.6583,176.73,176.7,23.776884]
[1730103216386,19.68529564,176.74,176.69,23.776884]
[1730103218093,0.5984079,176.75,176.7,14.02729564]
[1730103218288,14.62570354,176.75,176.71,23.776884]
[1730103218495,14.62570354,176.75,176.7,23.776884]
[1730103219209,14.02729564,176.74,176.7,23.776884]
[1730103220302,14.62570354,176.75,176.7,37.80417964]
[1730103221286,14.02729564,176.74,176.69,23.776884]
[1730103222095,19.68549564,176.74,176.69,23.776884]
[1730103224588,5.6582,176.74,176.69,37.80417964]
[1730103224790,19.68549564,176.74,176.69,37.80417964]
[1730103225286,5.6582,176.74,176.69,37.80417964]
[1730103226207,19.68549564,176.74,176.69,37.80417964]
[1730103226391,19.68549564,176.74,176.69,23.776884]
[1730103226601,19.68549564,176.74,176.68,14.02729564]
[1730103226602,14.02729564,176.72,176.68,23.776884]
[1730103226909,19.68569564,176.73,176.68,37.80417964]
[1730103227105,0.5984079,176.75,176.68,37.80417964]
[1730103227415,19.68529564,176.74,176.68,37.80417964]
[1730103228097,19.68529564,176.74,176.69,14.02729564]
[1730103228307,19.68529564,176.74,176.7,23.776884]
[1730103228893,5.658,176.74,176.7,14.02729564]
[1730103229094,19.68529564,176.74,176.69,37.80417964]
[1730103230694,14.02729564,176.73,176.68,23.776884]
[1730103231094,5.658,176.74,176.69,14.02729564]
[1730103231313,14.02729564,176.73,176.68,37.80417964]
[1730103233114,14.02729564,176.72,176.68,23.776884]
[1730103233301,5.6583,176.73,176.67,37.80417964]
[1730103233506,14.02729564,176.7,176.65,14.02729564]
[1730103234012,19.68669564,176.7,176.65,14.02729564]
[1730103234818,19.68669564,176.7,176.66,23.776884]
[1730103235417,14.02729564,176.69,176.65,23.776884]
[1730103235918,5.6594,176.7,176.65,37.80417964]
[1730103237506,14.1454,176.74,176.65,37.80417964]
[1730103237507,0.5984079,176.75,176.69,14.02729564]
[1730103237707,19.68529564,176.74,176.7,23.776884]
[1730103238101,6.2561079,176.75,176.7,23.776884]
[1730103238296,14.02729564,176.74,176.7,23.776884]
[1730103238722,14.02729564,176.74,176.69,23.776884]
[1730103239131,14.02729564,176.73,176.67,14.02729564]
[1730103239421,14.02729564,176.72,176.67,23.776884]
[1730103240125,14.02729564,176.73,176.68,14.02729564]
[1730103240320,6.2562079,176.75,176.7,23.776884]
[1730103240521,14.02729564,176.74,176.7,23.776884]
[1730103242502,14.62570354,176.75,176.72,23.776884]
[1730103242699,14.62570354,176.75,176.7,39.636684]
[1730103243025,0.5984079,176.75,176.74,37.80417964]
[1730103245022,0.5984079,176.75,176.74,23.776884]
[1730103246824,0.5984079,176.75,176.74,37.80417964]
[1730103247334,0.5984079,176.75,176.73,23.776884]
[1730103247517,0.5984079,176.75,176.72,23.776884]
[1730103247950,20.28340354,176.75,176.69,14.02729564]
[1730103248440,20.28340354,176.75,176.7,14.02729564]
[1730103248812,0.5984079,176.75,176.7,14.02729564]
[1730103249019,0.5984079,176.75,176.71,14.02729564]
[1730103249234,0.5984079,176.75,176.73,14.02729564]
[1730103249432,0.5984079,176.75,176.74,23.776884]
[1730103251018,0.5984079,176.75,176.74,37.80417964]
[1730103253047,0.5984079,176.75,176.74,53.97345964]
[1730103253230,6.62939597,176.89,176.76,24.027864]
[1730103253429,5.6529,176.9,176.85,14.02729564]
[1730103253747,14.02729564,176.89,176.83,14.02729564]
[1730103254441,5.6525,176.92,176.86,14.02729564]
[1730103254640,86.1345079,176.97,176.83,6.1567]
[1730103254818,13.02729564,176.93,176.88,14.02729564]
[1730103255216,13.02729564,176.93,176.89,23.776884]
[1730103255832,5.652,176.93,176.89,23.776884]
[1730103256015,14.02729564,176.92,176.88,23.776884]
[1730103256816,5.652,176.93,176.88,37.80417964]
[1730103257328,19.67929564,176.93,176.88,23.776884]
[1730103258041,5.652,176.93,176.9,23.776884]
[1730103258342,5.652,176.93,176.88,37.80417964]
[1730103258543,14.02729564,176.92,176.9,23.776884]
[1730103259039,19.67929564,176.93,176.9,23.776884]
[1730103259448,5.6512,176.96,176.9,37.80417964]
[1730103259617,6.6384,176.98,176.95,14.02729564]
[1730103259817,16.35,176.99,176.95,14.02729564]
[1730103260018,36.02729564,176.99,176.96,23.776884]
[1730103260235,22.0,176.99,176.96,23.776884]
[1730103261223,22.0,176.99,176.9,15.9825]
[1730103261224,16.35,176.99,176.95,37.80417964]
[1730103261422,16.35,176.99,176.96,14.02729564]
[1730103261726,16.35,176.99,176.97,23.776884]
[1730103263444,16.35,176.99,176.96,14.02729564]
[1730103263445,22.0001,176.99,176.96,23.776884]
[1730103263642,22.0001,176.99,176.95,23.776884]
[1730103264026,14.02729564,176.98,176.95,23.776884]
[1730103264331,16.35,176.99,176.96,23.776884]
[1730103264640,16.35,176.99,176.98,23.776884]
[1730103265742,16.35,176.99,176.98,37.80417964]
[1730103268231,16.35,176.99,176.98,59.80515964]
[1730103268435,0.5984079,177.1,177.08,14.02729564]
[1730103268658,0.5984079,177.1,177.09,23.776884]
[1730103268959,0.5984079,177.1,177.09,59.55417964]
[1730103269126,0.5984079,177.1,177.09,45.526884]
[1730103269321,0.5984079,177.1,177.09,43.90847964]
[1730103269531,0.0984079,177.1,177.09,43.90847964]
[1730103269746,0.0984079,177.1,177.09,37.80417964]
[1730103271376,5.6423,177.23,177.15,14.02729564]
[1730103272024,5.6423,177.23,177.08,0.1]
[1730103272025,14.02729564,177.22,177.16,14.02729564]
[1730103272230,0.1,177.25,177.16,14.02729564]
[1730103272431,14.02729564,177.17,177.11,14.02729564]
[1730103272645,10.02729564,177.17,177.12,23.276884]
[1730103272835,10.02729564,177.17,177.12,37.30417964]
[1730103273555,14.02729564,177.18,177.12,37.30417964]
[1730103273760,5.643,177.21,177.13,14.02729564]
[1730103273933,14.02729564,177.19,177.13,14.02729564]
[1730103274249,5.6417,177.25,177.16,14.02729564]
[1730103274450,14.02729564,177.22,177.16,14.02729564]
[1730103274831,14.02729564,177.21,177.17,23.776884]
[1730103275147,19.66999564,177.22,177.17,23.776884]
[1730103275351,14.02729564,177.2,177.14,14.02729564]
[1730103275537,14.02729564,177.2,177.15,23.776884]
[1730103275937,5.6427,177.22,177.15,23.776884]
[1730103276137,14.02729564,177.2,177.15,23.776884]
[1730103276444,14.02729564,177.17,177.06,20.0]
[1730103276756,14.02729564,177.17,177.11,14.02729564]
[1730103276944,14.02729564,177.17,177.12,14.02729564]
[1730103277635,19.67159564,177.17,177.13,23.776884]
[1730103277833,19.67159564,177.17,177.12,23.776884]
[1730103278141,14.02729564,177.16,177.12,23.776884]
[1730103279038,19.67189564,177.16,177.12,23.776884]
[1730103279557,14.02729564,177.14,177.12,23.776884]
[1730103279741,14.02729564,177.15,177.11,23.776884]
[1730103280155,19.67189564,177.16,177.11,23.776884]
[1730103280459,19.67189564,177.16,177.11,37.80417964]
[1730103280664,14.02729564,177.17,177.11,37.80417964]
[1730103281037,5.6441,177.18,177.11,37.80417964]
[1730103281243,14.02729564,177.17,177.11,37.80417964]
[1730103281950,14.02729564,177.16,177.11,37.80417964]
[1730103282156,14.02729564,177.16,177.11,23.776884]
[1730103282468,5.6442,177.17,177.11,37.80417964]
[1730103282759,19.67149564,177.17,177.11,37.80417964]
[1730103283149,14.02729564,177.18,177.13,37.80417964]
[1730103283349,14.02729564,177.18,177.14,23.776884]
[1730103283544,14.02729564,177.2,177.14,37.80417964]
[1730103283742,14.02729564,177.2,177.16,23.776884]
[1730103283943,19.67029564,177.21,177.16,37.80417964]
[1730103284165,14.02729564,177.2,177.16,23.776884]
[1730103284364,5.642,177.24,177.16,23.776884]
[1730103284365,14.02729564,177.19,177.16,23.776884]
[1730103284542,14.02729564,177.19,177.15,23.776884]
[1730103284943,89.7471,177.24,177.17,23.776884]
[1730103285262,19.67089564,177.2,177.17,23.776884]
[1730103285468,19.67089564,177.2,177.16,23.776884]
[1730103286570,19.67089564,177.2,177.15,23.776884]
[1730103287051,14.02729564,177.19,177.15,23.776884]
[1730103287248,5.6436,177.2,177.14,23.776884]
[1730103287453,14.02729564,177.19,177.14,23.776884]
[1730103288158,14.02729564,177.16,177.11,14.02729564]
[1730103288553,14.02729564,177.17,177.11,14.02729564]
[1730103289467,19.67189564,177.16,177.11,23.776884]
[1730103289964,5.6446,177.16,177.11,37.80417964]
[1730103290858,14.02729564,177.16,177.11,37.80417964]
[1730103291372,14.02729564,177.15,177.1,30.30879564]
[1730103291557,20.0,177.19,177.11,14.02729564]
[1730103291764,14.02729564,177.18,177.12,14.02729564]
[1730103292162,14.02729564,177.17,177.12,14.02729564]
[1730103292470,14.02729564,177.16,177.1,30.30879564]
[1730103292772,14.02729564,177.16,177.11,23.776884]
[1730103294058,5.6445,177.17,177.11,37.80417964]
[1730103294346,20.0,177.2,177.11,37.80417964]
[1730103294546,14.02729564,177.16,177.11,37.80417964]
[1730103295068,14.02729564,177.17,177.12,14.02729564]
[1730103295269,14.02729564,177.16,177.11,37.80417964]
[1730103296572,5.6436,177.19,177.11,37.80417964]
[1730103296776,14.02729564,177.16,177.11,37.80417964]
[1730103297546,14.02729564,177.16,177.11,23.776884]
[1730103297960,14.02729564,177.15,177.11,23.776884]
[1730103298567,14.02729564,177.15,177.1,30.30879564]
[1730103298775,5.6447,177.16,177.1,30.30879564]
[1730103298943,14.02729564,177.15,177.1,30.30879564]
[1730103299576,5.6447,177.16,177.08,14.02729564]
[1730103299753,14.02729564,177.14,177.1,23.776884]
[1730103299954,14.02729564,177.14,177.09,23.776884]
[1730103301274,20.0,177.17,177.11,23.776884]
[1730103301572,14.02729564,177.16,177.11,23.776884]
[1730103301756,25.6439,177.18,177.11,37.80417964]
[1730103301958,15.9411,177.22,177.11,37.80417964]
[1730103301959,14.02729564,177.2,177.15,23.776884]
[1730103302275,14.02729564,177.19,177.15,23.776884]
[1730103302568,5.643,177.21,177.14,23.776884]
[1730103302749,14.02729564,177.19,177.14,23.776884]
[1730103302946,5.6439,177.18,177.14,23.776884]
[1730103303154,19.67119564,177.18,177.14,23.776884]
[1730103303568,5.6439,177.18,177.14,37.80417964]
[1730103304260,14.02729564,177.2,177.15,14.02729564]
[1730103304463,14.02729564,177.2,177.16,23.776884]
[1730103304776,14.02729564,177.2,177.14,37.80417964]
[1730103304959,5.643,177.21,177.14,37.80417964]
[1730103304960,14.02729564,177.19,177.14,37.80417964]
[1730103305571,5.643,177.21,177.18,23.776884]
[1730103305772,5.6417,177.25,177.19,14.02729564]
[1730103305977,5.6417,177.25,177.2,14.02729564]
[1730103306170,14.02729564,177.24,177.21,23.776884]
[1730103306373,5.6423,177.23,177.2,23.776884]
[1730103307172,5.6423,177.23,177.13,6.6279]
[1730103307173,14.02729564,177.21,177.15,14.02729564]
[1730103307353,14.02729564,177.2,177.16,23.776884]
[1730103307554,14.02729564,177.21,177.16,23.776884]
[1730103307783,14.02729564,177.21,177.16,37.80417964]
[1730103307972,14.02729564,177.22,177.16,37.80417964]
[1730103308159,70.0,177.27,177.19,23.776884]
[1730103308481,14.02729564,177.23,177.19,23.776884]
[1730103309356,14.02729564,177.24,177.19,37.80417964]
[1730103310354,5.6423,177.23,177.19,37.80417964]
[1730103310568,14.02729564,177.22,177.18,23.776884]
[1730103311080,5.6423,177.23,177.17,23.776884]
[1730103311081,14.02729564,177.21,177.17,23.776884]
[1730103311257,14.02729564,177.2,177.14,14.02729564]
[1730103312274,5.6436,177.19,177.15,14.02729564]
[1730103312670,5.6436,177.19,177.16,23.776884]
[1730103313168,5.6436,177.19,177.16,37.80417964]
[1730103313373,5.6433,177.2,177.16,37.80417964]
[1730103313770,14.02729564,177.17,177.09,6.3481]
[1730103313972,14.02729564,177.14,177.09,6.3481]
[1730103314156,14.02729564,177.12,177.07,14.02729564]
[1730103314485,14.02729564,177.1,177.05,6.3481]
[1730103314684,14.02729564,177.1,177.04,14.02729564]
[1730103314685,14.02729564,177.09,177.04,14.02729564]
[1730103315197,14.02729564,177.07,177.0,6.3481]
[1730103315370,20.0,177.1,177.03,14.02729564]
[1730103315684,34.02729564,177.1,177.04,14.02729564]
[1730103316277,14.02729564,177.1,177.04,14.02729564]
[1730103316574,5.6458,177.12,177.09,14.02729564]
[1730103316776,5.6458,177.12,177.1,23.776884]
[1730103317085,5.6458,177.12,177.09,23.776884]
[1730103317287,5.6458,177.12,177.08,23.776884]
[1730103317482,19.67309564,177.12,177.08,23.776884]
[1730103318256,5.6458,177.12,177.1,23.776884]
[1730103318562,5.6455,177.14,177.1,23.776884]
[1730103318786,5.6455,177.14,177.11,14.02729564]
[1730103318964,5.6455,177.14,177.12,14.02729564]
[1730103319377,5.6446,177.16,177.12,14.02729564]
[1730103319561,5.6446,177.16,177.1,23.776884]
[1730103319562,5.6442,177.18,177.14,14.02729564]
[1730103319769,5.6435,177.2,177.17,23.776884]
[1730103320090,5.6435,177.2,177.14,14.02729564]
[1730103320276,19.67079564,177.2,177.15,23.776884]
[1730103320469,5.6435,177.2,177.16,14.02729564]
[1730103320679,5.6435,177.2,177.17,23.776884]
[1730103320989,14.02729564,177.26,177.2,23.776884]
[1730103321171,14.02729564,177.26,177.21,14.02729564]
[1730103321371,5.6417,177.25,177.22,23.776884]
[1730103322693,19.66839564,177.27,177.22,37.80417964]
[1730103323269,19.66839564,177.27,177.22,23.776884]
[1730103323570,19.66839564,177.27,177.22,37.80417964]
[1730103323765,19.66839564,177.27,177.22,23.776884]
[1730103323990,19.66839564,177.27,177.22,37.80417964]
[1730103324169,5.6411,177.27,177.24,23.776884]
[1730103324571,0.5984079,177.28,177.25,14.02729564]
[1730103324778,0.5984079,177.28,177.27,37.80417964]
[1730103327188,0.5984079,177.28,177.27,37.92966964]
[1730103327564,0.5984079,177.28,177.27,37.80417964]
[1730103327795,0.5984079,177.28,177.27,37.92966964]